fUSD/lending_fUSD_20250930
["ID","MTS","AMOUNT","RATE_DAILY","PERIOD"]
[388573165,1759243925289,-500.0,0.0002,2]
[388573166,1759243925301,-500.0,0.0002,2]
[388573167,1759243925311,-1590.7,0.0002,2]
[388573168,1759243925320,-500.0,0.0002,2]
[388573169,1759243925329,-636.3,0.0002,2]
[388573170,1759243925339,-705.59,0.0002,2]
[388573171,1759243925349,-900.53,0.0002,2]
[388573172,1759243925358,-2925.57,0.0002,2]
[388573173,1759243925367,-500.0,0.0002,2]
[388573174,1759243925377,-2601.54,0.0002,2]
[388573175,1759243925386,-500.0,0.0002,2]
[388573176,1759243925395,-500.0,0.0002,2]
[388573177,1759243925405,-1693.84,0.0002,2]
[388573178,1759243925414,-500.0,0.0002,2]
[388573179,1759243925423,-500.0,0.0002,2]
[388573180,1759243925433,-500.0,0.0002,2]
[388573181,1759243925442,-500.0,0.0002,2]
[388573182,1759243925451,-500.0,0.0002,2]
[388573183,1759243925460,-780.07,0.0002,2]
[388573184,1759243925469,-500.0,0.0002,2]
[388573185,1759243925479,-446.38103867,0.0002,2]
[388573186,1759243925488,-500.0,0.0002,2]
[388573187,1759243925497,-1487.72,0.0002,2]
[388573188,1759243925507,-3712.54,0.0002,2]
[388573189,1759243925515,-1380.28,0.0002,2]
[388573190,1759243925524,-513.58,0.0002,2]
[388573191,1759243925534,-1076.9,0.0002,2]
[388573192,1759243925543,-512.86,0.0002,2]
[388573193,1759243925555,-941.59,0.0002,2]
[388573194,1759243925565,-714.53,0.0002,2]
[388573195,1759243925574,-1392.68,0.0002,2]
[388573196,1759243925583,-500.0,0.0002,2]
[388573197,1759243925593,-500.0,0.0002,2]
[388573198,1759243925602,-1238.43,0.0002,2]
[388573199,1759243925611,-500.0,0.0002,2]
[388573200,1759243925709,-500.0,0.0002,2]
[388573201,1759243925754,-840.76,0.0002,2]
[388573202,1759243925763,-500.0,0.0002,2]
[388573203,1759243925773,-596.99,0.0002,2]
[388573204,1759243925782,-808.21,0.0002,2]
[388573205,1759243925794,-500.0,0.0002,2]
[388573206,1759243925806,-540.1,0.0002,2]
[388573207,1759243925816,-2070.05,0.0002,2]
[388573208,1759243925825,-500.0,0.0002,2]
[388573209,1759243925835,-560.58,0.0002,2]
[388573210,1759243925844,-500.0,0.0002,2]
[388573211,1759243925853,-540.1,0.0002,2]
[388573212,1759243925862,-500.0,0.0002,2]
[388573213,1759243925873,-817.6,0.0002,2]
[388573214,1759243925883,-500.0,0.0002,2]
[388573215,1759243925894,-500.0,0.0002,2]
[388573216,1759243925905,-500.0,0.0002,2]
[388573217,1759243925915,-500.0,0.0002,2]
[388573218,1759243925924,-500.0,0.0002,2]
[388573219,1759243925934,-5355.07,0.0002,2]
[388573220,1759243925943,-2335.08,0.0002,2]
[388573221,1759243925952,-500.0,0.0002,2]
[388573222,1759243925962,-500.0,0.0002,2]
[388573223,1759243925971,-1147.67,0.0002,2]
[388573224,1759243925980,-500.0,0.0002,2]
[388573225,1759243925989,-500.0,0.0002,2]
[388573226,1759243925998,-3505.26,0.0002,2]
[388573227,1759243926007,-1760.32,0.0002,2]
[388573228,1759243926017,-509.08,0.0002,2]
[388573229,1759243926027,-3350.21,0.0002,2]
[388573230,1759243926038,-500.0,0.0002,2]
[388573231,1759243926052,-2164.5,0.0002,2]
[388573232,1759243926063,-500.0,0.0002,2]
[388573233,1759243926072,-500.0,0.0002,2]
[388573234,1759243926082,-621.6,0.0002,2]
[388573235,1759243926092,-3511.46,0.0002,2]
[388573236,1759243926101,-1195.98,0.0002,2]
[388573237,1759243926110,-3353.46,0.0002,2]
[388573238,1759243926120,-500.0,0.0002,2]
[388573239,1759243926130,-500.0,0.0002,2]
[388573240,1759243926139,-1599.6,0.0002,2]
[388573241,1759243926149,-1240.5,0.0002,2]
[388573242,1759243926158,-500.0,0.0002,2]
[388573243,1759243926168,-5540.87,0.0002,2]
[388573244,1759243926177,-500.0,0.0002,2]
[388573245,1759243926187,-805.73,0.0002,2]
[388573246,1759243926196,-500.0,0.0002,2]
[388573247,1759243926206,-2715.19,0.0002,2]
[388573248,1759243926215,-155.785656,0.0002,2]
[388573249,1759243926225,-1797.12,0.0002,2]
[388573250,1759243926234,-6610.98,0.0002,2]
[388573251,1759243926244,-155.785656,0.0002,2]
[388573252,1759243926254,-705.44,0.0002,2]
[388573253,1759243926265,-155.785656,0.0002,2]
[388573254,1759243926276,-853.5,0.0002,2]
[388573255,1759243926287,-500.0,0.0002,2]
[388573256,1759243926298,-550.77,0.0002,2]
[388573257,1759243926308,-155.785663,0.0002,2]
[388573258,1759243926317,-500.0,0.0002,2]
[388573259,1759243926327,-500.0,0.0002,2]
[388573260,1759243926337,-500.0,0.0002,2]
[388573261,1759243926347,-5110.4,0.0002,2]
[388573262,1759243926356,-500.0,0.0002,2]
[388573263,1759243926365,-500.0,0.0002,2]
[388573264,1759243926374,-500.0,0.0002,2]
[388573265,1759243926384,-1675.3,0.0002,2]
[388573266,1759243926394,-500.0,0.0002,2]
[388573267,1759243926403,-500.0,0.0002,2]
[388573268,1759243926413,-1575.48,0.0002,2]
[388573269,1759243926422,-500.0,0.0002,2]
[388573270,1759243926431,-1581.9,0.0002,2]
[388573271,1759243926440,-612.19,0.0002,2]
[388573272,1759243926450,-2157.08,0.0002,2]
[388573273,1759243926460,-4283.19,0.0002,2]
[388573274,1759243926469,-1098.61,0.0002,2]
[388573275,1759243926479,-500.0,0.0002,2]
[388573276,1759243926489,-500.0,0.0002,2]
[388573277,1759243926498,-586.61,0.0002,2]
[388573278,1759243926508,-500.0,0.0002,2]
[388573279,1759243926517,-2415.06,0.0002,2]
[388573280,1759243926526,-5438.8,0.0002,2]
[388573281,1759243926536,-1045.49,0.0002,2]
[388573282,1759243926547,-500.0,0.0002,2]
[388573283,1759243926557,-500.0,0.0002,2]
[388573284,1759243926567,-957.45,0.0002,2]
[388573285,1759243926576,-1286.78,0.0002,2]
[388573286,1759243926585,-571.65,0.0002,2]
[388573287,1759243926594,-1218.74,0.0002,2]
[388573288,1759243926604,-2166.0,0.0002,2]
[388573289,1759243926613,-5083.05,0.0002,2]
[388573291,1759243926623,-4808.33,0.0002,2]
[388573292,1759243926633,-2880.85,0.0002,2]
[388573293,1759243926642,-883.74,0.0002,2]
[388573294,1759243926652,-500.0,0.0002,2]
[388573295,1759243926663,-500.0,0.0002,2]
[388573296,1759243926673,-1373.2,0.0002,2]
[388573297,1759243926683,-500.0,0.0002,2]
[388573298,1759243926693,-500.0,0.0002,2]
[388573299,1759243926702,-500.0,0.0002,2]
[388573300,1759243926713,-500.0,0.0002,2]
[388573301,1759243926722,-500.0,0.0002,2]
[388573302,1759243926732,-806.47,0.0002,2]
[388573303,1759243926741,-549.1,0.0002,2]
[388573304,1759243926750,-1566.99,0.0002,2]
[388573305,1759243926760,-500.0,0.0002,2]
[388573306,1759243926769,-500.0,0.0002,2]
[388573307,1759243926778,-500.0,0.0002,2]
[388573308,1759243926787,-5111.26,0.0002,2]
[388573309,1759243926799,-636.06,0.0002,2]
[388573310,1759243926808,-500.0,0.0002,2]
[388573311,1759243926818,-500.0,0.0002,2]
[388573312,1759243926828,-598.08,0.0002,2]
[388573313,1759243926837,-500.0,0.0002,2]
[388573314,1759243926847,-2718.85,0.0002,2]
[388573315,1759243926856,-636.1,0.0002,2]
[388573316,1759243926866,-3621.53,0.0002,2]
[388573317,1759243926876,-1725.05,0.0002,2]
[388573318,1759243926885,-2533.68,0.0002,2]
[388573319,1759243926894,-3013.89,0.0002,2]
[388573320,1759243926904,-804.58,0.0002,2]
[388573321,1759243926914,-500.0,0.0002,2]
[388573322,1759243926924,-500.0,0.0002,2]
[388573323,1759243926934,-857.920883,0.0002,2]
[388573324,1759243926943,-500.0,0.0002,2]
[388573325,1759243926952,-1914.69,0.0002,2]
[388573326,1759243926961,-500.0,0.0002,2]
[388573327,1759243926971,-857.920883,0.0002,2]
[388573328,1759243926979,-500.0,0.0002,2]
[388573329,1759243926989,-543.49635016,0.0002,2]
[388573330,1759243926999,-152.135929,0.0002,2]
[388573331,1759243927008,-152.135929,0.0002,2]
[388573332,1759243927018,-857.920883,0.0002,2]
[388573333,1759243927027,-1896.37,0.0002,2]
[388573334,1759243927037,-859.8,0.0002,2]
[388573335,1759243927050,-1627.92,0.0002,2]
[388573336,1759243927061,-4288.38,0.0002,2]
[388573337,1759243927070,-500.0,0.0002,2]
[388573338,1759243927079,-857.920881,0.0002,2]
[388573339,1759243927088,-152.135929,0.0002,2]
[388573340,1759243927098,-206.530796,0.0002,2]
[388573341,1759243927108,-500.0,0.0002,2]
[388573342,1759243927118,-500.0,0.0002,2]
[388573343,1759243927128,-152.135927,0.0002,2]
[388573344,1759243927137,-4489.31,0.0002,2]
[388573345,1759243927146,-206.530796,0.0002,2]
[388573346,1759243927156,-2042.97,0.0002,2]
[388573347,1759243927166,-206.530796,0.0002,2]
[388573348,1759243927175,-433.36224085,0.0002,2]
[388573349,1759243927185,-151.0,0.0002,2]
[388573350,1759243927194,-948.57,0.0002,2]
[388573351,1759243927204,-206.530803,0.0002,2]
[388573352,1759243927213,-151.0,0.0002,2]
[388573353,1759243927223,-3509.0,0.0002,2]
[388573354,1759243927232,-1043.98,0.0002,2]
[388573355,1759243927242,-1000.0,0.0002,2]
[388573356,1759243927251,-1002.99,0.0002,2]
[388573357,1759243927260,-500.0,0.0002,2]
[388573358,1759243927269,-3298.82,0.0002,2]
[388573359,1759243927279,-1877.95,0.0002,2]
[388573360,1759243927288,-500.0,0.0002,2]
[388573361,1759243927298,-575.92,0.0002,2]
[388573362,1759243927307,-2949.36,0.0002,2]
[388573363,1759243927317,-595.256096,0.0002,2]
[388573364,1759243927326,-4003.15,0.0002,2]
[388573365,1759243927336,-500.0,0.0002,2]
[388573366,1759243927345,-504.58,0.0002,2]
[388573367,1759243927354,-500.0,0.0002,2]
[388573368,1759243927363,-2276.63,0.0002,2]
[388573369,1759243927372,-595.256096,0.0002,2]
[388573370,1759243927382,-500.0,0.0002,2]
[388573371,1759243927391,-500.0,0.0002,2]
[388573372,1759243927400,-595.256096,0.0002,2]
[388573373,1759243927410,-553.64987038,0.0002,2]
[388573374,1759243927419,-595.256091,0.0002,2]
[388573375,1759243927428,-500.0,0.0002,2]
[388573376,1759243927437,-551.58,0.0002,2]
[388573377,1759243927446,-4326.28,0.0002,2]
[388573378,1759243927455,-4579.72,0.0002,2]
[388573379,1759243927466,-500.0,0.0002,2]
[388573380,1759243927476,-500.0,0.0002,2]
[388573381,1759243927485,-500.0,0.0002,2]
[388573382,1759243927495,-4667.32,0.0002,2]
[388573383,1759243927504,-2121.11,0.0002,2]
[388573384,1759243927514,-151.0,0.0002,2]
[388573385,1759243927524,-659.75,0.0002,2]
[388573386,1759243927534,-500.0,0.0002,2]
[388573387,1759243927543,-500.0,0.0002,2]
[388573388,1759243927554,-722.87,0.0002,2]
[388573389,1759243927564,-151.0,0.0002,2]
[388573390,1759243927574,-5020.85,0.0002,2]
[388573391,1759243927583,-692.75,0.0002,2]
[388573392,1759243927593,-1899.13,0.0002,2]
[388573393,1759243927602,-3031.79,0.0002,2]
[388573394,1759243927612,-500.0,0.0002,2]
[388573395,1759243927621,-532.98,0.0002,2]
[388573396,1759243927631,-1124.83,0.0002,2]
[388573397,1759243927640,-1756.01,0.0002,2]
[388573398,1759243927649,-715.28,0.0002,2]
[388573399,1759243927659,-5421.88,0.0002,2]
[388573400,1759243927668,-405.37114869,0.0002,2]
[388573401,1759243927677,-500.0,0.0002,2]
[388573402,1759243927686,-500.0,0.0002,2]
[388573403,1759243927695,-248.082918,0.0002,2]
[388573404,1759243927705,-4640.6,0.0002,2]
[388573405,1759243927715,-248.082918,0.0002,2]
[388573406,1759243927724,-2742.48,0.0002,2]
[388573407,1759243927734,-248.082918,0.0002,2]
[388573408,1759243927743,-500.0,0.0002,2]
[388573409,1759243927752,-500.0,0.0002,2]
[388573410,1759243927761,-500.0,0.0002,2]
[388573411,1759243927770,-3900.26,0.0002,2]
[388573412,1759243927779,-248.082917,0.0002,2]
[388573413,1759243927788,-4877.04,0.0002,2]
[388573414,1759243927798,-523.26,0.0002,2]
[388573415,1759243927807,-3168.12,0.0002,2]
[388573416,1759243927816,-500.0,0.0002,2]
[388573417,1759243927825,-500.0,0.0002,2]
[388573418,1759243927835,-560.42,0.0002,2]
[388573419,1759243927844,-1903.48,0.0002,2]
[388573420,1759243928170,-2521.38,0.0002,2]
[388573421,1759243928230,-500.0,0.0002,2]
[388573422,1759243928241,-2806.65,0.0002,2]
[388573423,1759243928251,-500.0,0.0002,2]
[388573424,1759243928260,-151.0,0.0002,2]
[388573425,1759243928269,-883.02,0.0002,2]
[388573426,1759243928277,-500.0,0.0002,2]
[388573427,1759243928286,-3713.1,0.0002,2]
[388573428,1759243928295,-2506.86,0.0002,2]
[388573429,1759243928306,-151.0,0.0002,2]
[388573430,1759243928316,-825.96,0.0002,2]
[388573431,1759243928325,-751.89,0.0002,2]
[388573432,1759243928333,-500.0,0.0002,2]
[388573433,1759243928342,-604.76,0.0002,2]
[388573434,1759243928351,-500.0,0.0002,2]
[388573435,1759243928359,-4055.75,0.0002,2]
[388573436,1759243928368,-1918.23,0.0002,2]
[388573437,1759243928377,-3017.79,0.0002,2]
[388573438,1759243928386,-872.23,0.0002,2]
[388573439,1759243928396,-500.0,0.0002,2]
[388573440,1759243928405,-151.0,0.0002,2]
[388573441,1759243928414,-500.0,0.0002,2]
[388573442,1759243928423,-500.0,0.0002,2]
[388573443,1759243928433,-500.0,0.0002,2]
[388573444,1759243928442,-151.0,0.0002,2]
[388573445,1759243928452,-2034.94,0.0002,2]
[388573446,1759243928462,-151.0,0.0002,2]
[388573447,1759243928472,-922.96,0.0002,2]
[388573448,1759243928482,-500.0,0.0002,2]
[388573449,1759243928491,-500.0,0.0002,2]
[388573450,1759243928500,-1339.37,0.0002,2]
[388573451,1759243928510,-500.0,0.0002,2]
[388573452,1759243928519,-500.0,0.0002,2]
[388573453,1759243928529,-151.0,0.0002,2]
[388573454,1759243928539,-818.91,0.0002,2]
[388573455,1759243928549,-237.58863196,0.0002,2]
[388573456,1759243928559,-3132.31,0.0002,2]
[388573457,1759243928568,-500.0,0.0002,2]
[388573458,1759243928578,-311.809884,0.0002,2]
[388573459,1759243928588,-3246.07,0.0002,2]
[388573460,1759243928597,-311.809884,0.0002,2]
[388573461,1759243928607,-500.0,0.0002,2]
[388573462,1759243928617,-500.0,0.0002,2]
[388573463,1759243928627,-2473.07,0.0002,2]
[388573464,1759243928637,-311.809884,0.0002,2]
[388573465,1759243928647,-3870.52,0.0002,2]
[388573466,1759243928657,-500.0,0.0002,2]
[388573467,1759243928667,-311.809888,0.0002,2]
[388573468,1759243928676,-1087.57,0.0002,2]
[388573469,1759243928686,-500.0,0.0002,2]
[388573470,1759243928696,-4139.96,0.0002,2]
[388573471,1759243928706,-1767.54,0.0002,2]
[388573472,1759243928715,-500.0,0.0002,2]
[388573473,1759243928725,-505.48432646,0.0002,2]
[388573474,1759243928734,-500.0,0.0002,2]
[388573475,1759243928744,-3201.03,0.0002,2]
[388573476,1759243928753,-500.0,0.0002,2]
[388573477,1759243928762,-189.657851,0.0002,2]
[388573478,1759243928772,-2034.42,0.0002,2]
[388573479,1759243928781,-500.0,0.0002,2]
[388573480,1759243928791,-189.657851,0.0002,2]
[388573481,1759243928802,-958.22,0.0002,2]
[388573482,1759243928813,-500.0,0.0002,2]
[388573483,1759243928823,-189.657851,0.0002,2]
[388573484,1759243928832,-500.0,0.0002,2]
[388573485,1759243928842,-500.0,0.0002,2]
[388573486,1759243928851,-177.377123,0.0002,2]
[388573487,1759243928861,-189.657844,0.0002,2]
[388573488,1759243928871,-2548.08,0.0002,2]
[388573489,1759243928880,-500.0,0.0002,2]
[388573490,1759243928890,-500.0,0.0002,2]
[388573491,1759243928899,-513.462665,0.0002,2]
[388573492,1759243928909,-177.377123,0.0002,2]
[388573493,1759243928919,-4492.44,0.0002,2]
[388573494,1759243928929,-2151.04,0.0002,2]
[388573495,1759243928939,-500.0,0.0002,2]
[388573496,1759243928948,-513.462665,0.0002,2]
[388573497,1759243928958,-500.0,0.0002,2]
[388573498,1759243928969,-177.377123,0.0002,2]
[388573499,1759243928979,-4031.72,0.0002,2]
[388573500,1759243928988,-513.462665,0.0002,2]
[388573501,1759243928998,-500.0,0.0002,2]
[388573502,1759243929008,-177.377127,0.0002,2]
[388573503,1759243929017,-2964.53,0.0002,2]
[388573504,1759243929027,-500.0,0.0002,2]
[388573505,1759243929037,-151.0,0.0002,2]
[388573506,1759243929047,-500.0,0.0002,2]
[388573507,1759243929060,-500.0,0.0002,2]
[388573508,1759243929070,-513.462663,0.0002,2]
[388573509,1759243929080,-500.0,0.0002,2]
[388573510,1759243929089,-500.0,0.0002,2]
[388573511,1759243929098,-3292.9,0.0002,2]
[388573512,1759243929108,-439.964211,0.0002,2]
[388573513,1759243929117,-526.92,0.0002,2]
[388573514,1759243929127,-3324.17,0.0002,2]
[388573515,1759243929136,-543.06263303,0.0002,2]
[388573516,1759243929146,-439.964211,0.0002,2]
[388573517,1759243929156,-732.56,0.0002,2]
[388573518,1759243929165,-2821.85,0.0002,2]
[388573519,1759243929175,-1184.74,0.0002,2]
[388573520,1759243929184,-898.43,0.0002,2]
[388573521,1759243929194,-439.964211,0.0002,2]
[388573522,1759243929203,-583.0,0.0002,2]
[388573523,1759243929213,-500.0,0.0002,2]
[388573524,1759243929223,-500.0,0.0002,2]
[388573525,1759243929233,-661.02,0.0002,2]
[388573526,1759243929243,-439.964213,0.0002,2]
[388573527,1759243929253,-500.0,0.0002,2]
[388573528,1759243929263,-2560.34,0.0002,2]
[388573529,1759243929273,-2046.99,0.0002,2]
[388573530,1759243929283,-257.963977,0.0002,2]
[388573531,1759243929292,-500.0,0.0002,2]
[388573532,1759243929304,-4624.82,0.0002,2]
[388573533,1759243929314,-257.963977,0.0002,2]
[388573534,1759243929324,-500.0,0.0002,2]
[388573535,1759243929334,-3466.53,0.0002,2]
[388573536,1759243929344,-500.0,0.0002,2]
[388573537,1759243929354,-257.963977,0.0002,2]
[388573538,1759243929364,-251.986327,0.0002,2]
[388573539,1759243929375,-3105.83,0.0002,2]
[388573540,1759243929385,-939.33,0.0002,2]
[388573541,1759243929396,-257.963973,0.0002,2]
[388573542,1759243929406,-500.0,0.0002,2]
[388573543,1759243929417,-251.986327,0.0002,2]
[388573544,1759243929427,-500.0,0.0002,2]
[388573545,1759243929437,-251.986327,0.0002,2]
[388573546,1759243929447,-1068.303714,0.0002,2]
[388573547,1759243929457,-500.0,0.0002,2]
[388573548,1759243929467,-251.986331,0.0002,2]
[388573549,1759243929478,-500.0,0.0002,2]
[388573550,1759243929488,-1068.303714,0.0002,2]
[388573551,1759243929498,-3601.0,0.0002,2]
[388573552,1759243929508,-500.0,0.0002,2]
[388573553,1759243929518,-1068.303714,0.0002,2]
[388573554,1759243929528,-1398.89,0.0002,2]
[388573555,1759243929542,-930.23,0.0002,2]
[388573556,1759243929555,-906.86,0.0002,2]
[388573557,1759243929565,-500.0,0.0002,2]
[388573558,1759243929575,-1068.303714,0.0002,2]
[388573559,1759243929585,-500.0,0.0002,2]
[388573560,1759243929595,-500.0,0.0002,2]
[388573561,1759243929604,-282.888,0.0002,2]
[388573562,1759243929614,-649.78,0.0002,2]
[388573563,1759243929623,-500.0,0.0002,2]
[388573564,1759243929633,-4407.74,0.0002,2]
[388573565,1759243929642,-282.888,0.0002,2]
[388573566,1759243929652,-500.0,0.0002,2]
[388573567,1759243929661,-1299.41,0.0002,2]
[388573568,1759243929671,-282.888,0.0002,2]
[388573569,1759243929681,-282.888002,0.0002,2]
[388573570,1759243929691,-150.0,0.0002,2]
[388573571,1759243929700,-2792.33,0.0002,2]
[388573572,1759243929711,-5083.1,0.0002,2]
[388573573,1759243929721,-1121.19,0.0002,2]
[388573574,1759243929731,-1700.17,0.0002,2]
[388573575,1759243929741,-523.6,0.0002,2]
[388573576,1759243929751,-5296.49,0.0002,2]
[388573577,1759243929761,-1096.67,0.0002,2]
[388573578,1759243929771,-500.0,0.0002,2]
[388573579,1759243929781,-1879.37,0.0002,2]
[388573580,1759243929790,-3571.88,0.0002,2]
[388573581,1759243929802,-881.11,0.0002,2]
[388573582,1759243929811,-151.0,0.0002,2]
[388573583,1759243929821,-500.0,0.0002,2]
[388573584,1759243929832,-151.0,0.0002,2]
[388573585,1759243929842,-500.0,0.0002,2]
[388573586,1759243929852,-3884.01,0.0002,2]
[388573587,1759243929862,-500.0,0.0002,2]
[388573588,1759243929872,-1064.22,0.0002,2]
[388573589,1759243929881,-500.0,0.0002,2]
[388573590,1759243929891,-1400.372464,0.0002,2]
[388573591,1759243929902,-710.39,0.0002,2]
[388573592,1759243929911,-1108.16,0.0002,2]
[388573593,1759243929920,-1400.372464,0.0002,2]
[388573594,1759243929930,-500.0,0.0002,2]
[388573595,1759243929940,-2629.92352744,0.0002,2]
[388573596,1759243931088,-733.44647256,0.0002,2]
[388573597,1759243931097,-414.15636971,0.0002,2]
[388573598,1759243931110,-986.21609429,0.0002,2]
[388573599,1759243931119,-500.0,0.0002,2]
[388573600,1759243931129,-2843.26,0.0002,2]
[388573601,1759243931140,-1400.372459,0.0002,2]
[388573602,1759243931149,-500.0,0.0002,2]
[388573603,1759243931159,-3512.3,0.0002,2]
[388573604,1759243931168,-500.0,0.0002,2]
[388573605,1759243931177,-7679.82,0.0002,2]
[388573606,1759243931186,-151.0,0.0002,2]
[388573607,1759243931196,-1542.41,0.0002,2]
[388573608,1759243931205,-500.0,0.0002,2]
[388573609,1759243931215,-879.12,0.0002,2]
[388573610,1759243931224,-151.0,0.0002,2]
[388573611,1759243931233,-547.83,0.0002,2]
[388573612,1759243931243,-608.6,0.0002,2]
[388573613,1759243931252,-500.0,0.0002,2]
[388573614,1759243931261,-938.56,0.0002,2]
[388573615,1759243931270,-151.0,0.0002,2]
[388573616,1759243931279,-500.0,0.0002,2]
[388573617,1759243931288,-4927.14,0.0002,2]
[388573618,1759243931298,-1089.86,0.0002,2]
[388573619,1759243931307,-829.99,0.0002,2]
[388573620,1759243931316,-989.47,0.0002,2]
[388573621,1759243931326,-500.0,0.0002,2]
[388573622,1759243931336,-697.53,0.0002,2]
[388573623,1759243931345,-860.26,0.0002,2]
[388573624,1759243931354,-165.023911,0.0002,2]
[388573625,1759243931363,-500.0,0.0002,2]
[388573626,1759243931372,-165.023911,0.0002,2]
[388573627,1759243931381,-500.0,0.0002,2]
[388573628,1759243931390,-500.0,0.0002,2]
[388573629,1759243931399,-165.023911,0.0002,2]
[388573630,1759243931408,-500.0,0.0002,2]
[388573631,1759243931417,-165.023905,0.0002,2]
[388573632,1759243931427,-500.0,0.0002,2]
[388573633,1759243931436,-4000.09,0.0002,2]
[388573634,1759243931445,-2610.4,0.0002,2]
[388573635,1759243931455,-446.91374,0.0002,2]
[388573636,1759243931463,-559.906261,0.0002,2]
[388573637,1759243931473,-151.0,0.0002,2]
[388573638,1759243931483,-559.906261,0.0002,2]
[388573639,1759243931493,-500.0,0.0002,2]
[388573640,1759243931503,-446.91374,0.0002,2]
[388573641,1759243931512,-500.0,0.0002,2]
[388573642,1759243931522,-2315.21,0.0002,2]
[388573643,1759243931533,-712.94,0.0002,2]
[388573644,1759243931544,-283.3802,0.0002,2]
[388573645,1759243931554,-635.26,0.0002,2]
[388573646,1759243931565,-151.0,0.0002,2]
[388573647,1759243931575,-1241.84,0.0002,2]
[388573648,1759243931586,-559.906261,0.0002,2]
[388573649,1759243931596,-446.91374,0.0002,2]
[388573650,1759243931606,-4635.08,0.0002,2]
[388573651,1759243931616,-151.0,0.0002,2]
[388573652,1759243931626,-935.379173,0.0002,2]
[388573653,1759243931637,-559.906264,0.0002,2]
[388573654,1759243931646,-151.0,0.0002,2]
[388573655,1759243931656,-446.913733,0.0002,2]
[388573656,1759243931666,-500.0,0.0002,2]
[388573657,1759243931675,-500.0,0.0002,2]
[388573658,1759243931684,-151.0,0.0002,2]
[388573659,1759243931694,-610.56,0.0002,2]
[388573660,1759243931702,-151.0,0.0002,2]
[388573661,1759243931712,-935.379173,0.0002,2]
[388573662,1759243931722,-3545.03,0.0002,2]
[388573663,1759243931731,-500.0,0.0002,2]
[388573664,1759243931741,-1008.121945,0.0002,2]
[388573665,1759243931751,-935.379173,0.0002,2]